{"text_format":"1","workbook":"xlsx","n_sheets":4,"sheets":["Протокол","настройки","Лист3","Буфер"],"not_rendered":{"charts":0,"images":1,"macros":1,"external_links":0,"defined_names":27,"comments":0,"pivot_tables":0},"unopened":[],"bounds":{"document_bytes":16777216,"sheet_cells":100000,"rows_first":2000,"rows_last":500,"rows_between":2000,"halvings":0,"cell_chars":16384,"cell_head_chars":4096},"cells_cut":0,"cells_raw":0,"read":"whole","date_system":"1900"}

{"sheet":"Протокол","index":0,"n_rows":102,"n_cols":11,"rows_kept":102,"cut":false,"hidden":false,"merged":[[92,9,92,17],[94,9,94,12],[95,9,95,12],[95,14,95,16],[61,0,61,8],[62,0,62,3],[62,4,62,5],[63,0,63,3],[63,4,63,5],[64,0,64,3],[64,4,64,5],[65,0,65,8],[66,0,66,5],[66,6,66,8],[67,0,67,5],[67,6,67,8],[68,0,68,2],[68,3,68,5],[81,0,81,3],[81,5,81,7],[86,9,86,11],[87,9,87,11],[90,9,90,17],[79,9,79,14],[84,9,84,17],[85,9,85,11],[74,9,74,17],[71,0,71,2],[72,0,72,2],[73,0,73,2],[70,0,70,8],[77,9,77,12],[77,13,77,14],[74,0,74,2],[75,0,75,2],[76,0,76,8],[79,15,79,17],[80,9,80,14],[80,15,80,17],[81,9,81,11],[81,12,81,14],[82,9,83,11],[82,12,83,17],[78,9,78,17],[88,9,88,11],[89,9,89,11],[78,0,78,8],[80,0,80,3],[75,9,75,12],[75,13,75,14],[76,9,76,12],[76,13,76,14],[55,1,55,2],[55,3,55,4],[55,5,55,6],[55,7,55,8],[56,1,56,2],[56,3,56,4],[56,5,56,6],[56,7,56,8],[57,1,57,2],[57,3,57,4],[57,5,57,6],[57,7,57,8],[58,1,58,2],[58,3,58,4],[58,5,58,6],[58,7,58,8],[59,1,59,2],[59,3,59,4],[59,5,59,6],[59,7,59,8],[51,3,51,5],[51,6,52,8],[52,0,52,2],[52,3,52,5],[53,0,53,3],[53,4,53,8],[54,1,54,2],[54,3,54,4],[54,5,54,6],[54,7,54,8],[23,3,23,8],[23,0,23,2],[22,3,22,5],[29,3,29,5],[29,0,29,2],[37,0,37,6],[37,7,37,8],[38,0,38,3],[38,4,38,8],[34,0,34,8],[35,0,35,8],[36,0,36,5],[36,6,36,8],[30,0,30,5],[30,6,30,7],[31,0,31,6],[32,0,32,8],[33,0,33,5],[33,6,33,8],[28,3,28,4],[25,0,25,2],[24,0,24,5],[25,3,25,4],[24,6,24,7],[26,0,26,3],[26,4,26,8],[28,0,28,1],[25,5,25,8],[27,0,27,8],[83,1,95,7],[47,0,47,2],[46,0,46,2],[47,3,47,5],[46,3,46,5],[40,0,40,8],[45,0,45,2],[44,0,44,2],[43,0,43,2],[42,0,42,2],[41,0,41,2],[69,0,69,4],[69,5,69,8],[48,0,48,8],[49,0,49,2],[49,3,49,5],[50,0,50,2],[50,3,50,5],[51,0,51,2],[3,1,3,11],[0,0,0,1],[0,3,0,4],[0,5,0,6],[0,10,0,11],[1,1,1,11],[2,4,2,5],[2,6,2,8],[20,0,20,2],[17,3,17,8],[6,0,6,1],[9,0,9,8],[10,0,10,8],[11,0,11,8],[7,0,7,8],[8,0,8,3],[8,4,8,8],[12,0,12,8],[22,0,22,2],[14,0,14,8],[15,0,15,2],[15,3,15,8],[16,0,16,2],[16,3,16,8],[19,3,19,4],[20,3,20,4],[19,0,19,2],[18,0,18,2],[18,3,18,8],[17,0,17,2],[21,3,21,5],[21,0,21,2]]}
["Текущая дата:",null,{"$f":"TODAY()","v":"2015-02-16"},"Дата поступления:",null,null,null,"Сутки:",null,{"$f":"dat_card-DatePost+1","v":1}]
["ФИО:","ФИО"]
["Возраст:",null,"№МКСБ:","МКСБ","Отделение:"]
["Ds:"]
[]
[]
[]
["ПРЕДТРАНСФУЗИОННЫЙ ЭПИКРИЗ:"]
["По жизненным показаниям назначено:"]
[]
[]
[]
["Зам. главного врача: __________       Зав. отдел: __________       деж. реаниматолог: __________ "]
[]
["Протокол трансфузии (переливания) донорской крови\nи (или) ее компонентов\n"]
["1. ФИО реципиента:",null,null,{"$f":"familIO","v":"ФИО"}]
["№ медицинской карты:",null,null,{"$f":"nomib","v":"МКСБ"}]
["Возраст (полных лет):",null,null,{"$f":"age","v":0}]
["2. Дата трансфузии:",null,null,{"$f":"TODAY()","v":"2015-02-16"}]
["3. Время начала трансфузии:",null,null,0.625]
["4. Время окончания трансфузии:",null,null,0.83333333333333337]
["5. Группа крови реципиента:"]
["6. Резус-принадлежность:"]
["7. Фенотип:",null,null,"мужской"]
["8. Определение резус-принадлежности проводилось:",null,null,null,null,null,"в лаборатории"]
["9. Исследование антител:",null,null,"не выявлены"]
["10. Медицинские показания к трансфузии:"]
["см. предтрансфузионный эпикриз"]
["Гемоглобин (г/л):",null,null,"Гематокрит (%):"]
["11. Трансфузионный анамнез:",null,null,"трансфузий не было"]
["12. Трансфузии по индивидуальному подбору в прошлом:",null,null,null,null,null,"не было"]
["13. Реакции и(или) осложнения, связанные с трансфузией в прошлом:"]
["не было"]
["14. Акушерский анамнез (количество беременностей):",null,null,null,null,null,"неизвестно"]
["15. Особенности течения беременностей (самопроизвольные аборты, гемолитическая болезь новорожденных и т.п):"]
["неизвестно"]
["16. Макроскопическая оценка крови или ее компонента:",null,null,null,null,null,"пригодна к переливанию",null,null,"группа","резус"]
["17. Данные с этикетки контейнера с кровью или ее компонентом:",null,null,null,null,null,null,"_________________"]
["18. Наименование компонента крови:",null,null,null,"эритроцитарная масса"]
["19. Наименование организации, заготовившей компоненты донорской крови:"]
["ОПК"]
["20. Дата заготовки:",null,null,"дата","дата","дата","дата","дата","дата"]
["21. Срок годности:",null,null,"срок","срок","срок","срок","срок","срок"]
["22. Номер контейнера:",null,null,"номер","номер","номер","номер","номер","номер"]
["23. Объем (мл):",null,null,"объем","объем","объем","объем","объем","объем"]
["24. Код донора (Ф.И.О. донора):",null,null,"код","код","код","код","код","код"]
["25. Группа крови донора:",null,null,{"$f":"D22","v":0}]
["26. Резус-принадлежн. донора:",null,null,{"$f":"D23","v":0}]
["27. Перед трансфузией (переливанием) донорской крови и (или) ее компонентов проведены контрольные проверки показателей:"]
["Группа крови реципиента:",null,null,{"$f":"ab0","v":0}]
["Резус-принадл. реципиента:",null,null,{"$f":"rhf","v":0}]
["Группа крови донора:",null,null,{"$f":"ab0","v":0},null,null,"(указывается при трансфузии эритроцитсодержащих сред)"]
["Резус-принадл. донора:",null,null,{"$f":"rhf","v":0}]
["28. При определении использовались:",null,null,null,"стандартные сыворотки"]
[null,{"$f":"IF(E54=\"стандартные сыворотки\",\"сыворотка\",\"цоликлон\")","v":"сыворотка"},null,"№ серии 1",null,"№ серии 2",null,"срок годности"]
[null,{"$f":"IF(E54=\"стандартные сыворотки\",\"0(I)\",\"анти-А\")","v":"0(I)"},null,33122014,null,33122014,null,"2015-06-01"]
[null,{"$f":"IF(E54=\"стандартные сыворотки\",\"A(II)\",\"анти-B\")","v":"A(II)"},null,33122014,null,33122014,null,"2015-06-01"]
[null,{"$f":"IF(E54=\"стандартные сыворотки\",\"B(III)\",\"\")","v":"B(III)"},null,33122014,null,33122014,null,"2015-06-01"]
[null,{"$f":"IF(E54=\"стандартные сыворотки\",\"AB(IV)\",\"\")","v":"AB(IV)"},null,33122014,null,33122014,null,"2015-06-01"]
[null,"антирезус",null,null,null,"нет"]
[]
["29. Проведены пробы на индивидуальную совместимость\n(указать при трансфузии эритроцитсодержащих сред):"]
["название пробы",null,null,null,"результат"]
["на плоскости при комнатной температуре",null,null,null,"совместима"]
["реакция коаглютинации с 33% полиглюкином",null,null,null,"совместима"]
["30. Проведена биологическая проба:"]
["В/в вливание 10 мл крови в течение 3 минут №1 с последующим наблюдением за состоянием рецепиента в течние 3 мин:",null,null,null,null,null,"признаков несовместимости нет"]
["В/в вливание 10 мл крови в течение 3 минут №2 с последующим наблюдением за состоянием рецепиента в течние 3 мин:",null,null,null,null,null,"признаков несовместимости нет"]
["31. Способ трансфузии:",null,null,"внутривенно капельно"]
["32. Осложнения во время трансфузии:",null,null,null,null,"не отмечено"]
["33. Наблюдение за состоянием рецепиента:"]
[null,null,null,"АД сист","АД диаст","ЧСС (в1мин)","Температ.","Диурез(мл)","Цвет мочи"]
["Перед трансфузией",null,null,null,null,null,null,"50-100","св-желт"]
["Через 1 час после трансфузии",null,null,{"$f":"D73+7","v":7},{"$f":"E73-1","v":-1},{"$f":"F73-7","v":-7},{"$f":"G73+0.1","v":0.1},"50-100","св-желт"]
["Через 2 часа после трансфузии",null,null,{"$f":"D73-12","v":-12},{"$f":"E73+3","v":3},{"$f":"F73+2","v":2},{"$f":"G73-0.3","v":-0.3},"50-100","св-желт"]
["Через 3 часа после трансфузии*",null,null,{"$f":"D73+3","v":3},{"$f":"E73+4","v":4},{"$f":"F73-4","v":-4},{"$f":"G73-0.2","v":-0.2},"50-100","св-желт"]
["* Указывается при проведении трансфузии (переливания) донорской крови и (или) ее компонентов в амбулаторных условиях."]
[]
["34. Врач, проводивший трансфузию донорской крови и/или ее компонентов:"]
[]
[]
["Ф.И.О.",null,null,null,null,"Подпись"]
[]
[null,"место для этикетки"]
[]
[]
[]
[]
[]
[]
[]
[]
[]
[]
[]
[]
[]
[]
[]
[]
[]
[null,12]

{"sheet":"настройки","index":1,"n_rows":38,"n_cols":10,"rows_kept":38,"cut":false,"hidden":true,"merged":[]}
[null,"в лаборатории",null,null,null,null,"0(I)","(+)положительный","стандартные сыворотки","мужской"]
[null,"экспресс-методом",null,null,null,null,"A(II)","(-)отрицательный","цоликлоны","женский"]
[null,null,null,null,null,null,"B(III)"]
[null,"выявлены",null,null,null,null,"AB(IV)"]
[null,"не выявлены",null,null,null,null,"A2(II)"]
[null,"не проводилось",null,null,null,null,"A2B(IV)"]
[]
[null,"острая анемия"]
[null,"коагулопатия"]
[null,"анемия, сопровождающаяся циркуляторными нарушениями"]
[null,"массивная кровопотеря"]
[]
[null,"трансфузии были"]
[null,"трансфузий не было"]
[null,"неизвестно"]
[null,null,null,null,"острая анемия"]
[null,"были",null,null,"коагулопатия"]
[null,"не было",null,null,"анемия, сопровождающаяся циркуляторными нарушениями"]
[null,"неизвестно",null,null,"массивная кровопотеря"]
[null,null,null,null,"проведение плазмафереза"]
[null,"пригодна к переливанию"]
[null,"не пригодна к переливанию"]
[]
[null,"эритроцитарная масса"]
[null,"эритроцитарная взвесь"]
[null,"свежезамороженная плазма"]
[null,"тромбовзвесь"]
[null,"тромбоконцентрат"]
[]
[null,"0(I)"]
[null,"A(II)"]
[null,"B(III)"]
[null,"AB(IV)"]
[null,"A2(II)"]
[null,"A2B(IV)"]
[]
[null,"(+)положительный"]
[null,"(-)отрицательный"]

{"sheet":"Лист3","index":2,"n_rows":0,"n_cols":0,"rows_kept":0,"cut":false,"hidden":true,"merged":[]}

{"sheet":"Буфер","index":3,"n_rows":44,"n_cols":9,"rows_kept":44,"cut":false,"hidden":false,"merged":[]}
[null,null,null,null,null,null,null,null,"- трансфузия некарантинизированной эритроцитной массы с целью коррекции постгеморрагической  анемии тяжелой степени"]
[null,null,null,null,null,null,null,null,"- плазмотрансфузия с целью лечения и профилактики развития ДВС синдрома"]
[null,null,null,null,null,null,null,null,"- плазмотрансфузия с заместительной целью при проведение плазмообмена"]
[null,null,null,null,null,null,null,null,"- инфузия альбумина с целью коррекции гипоальбуминемии"]
[null,null,null,null,null,null,null,null,"- инфузия иммуноглобулина с целью коррекции им.статуса"]
[null,null,null,null,null,null,null,null,"По тяжести состояния согласие пациента не получено."]
[]
[]
[]
[]
[]
[]
[]
[]
[]
[]
[]
[]
[]
[]
[]
[]
[]
[]
[]
[]
[]
[]
[]
[]
[]
[]
[]
[]
[]
[]
[]
[]
[]
[]
[]
[]
[]
[5]